fUSD/lending_fUSD_20250202
["ID","MTS","AMOUNT","RATE_DAILY","PERIOD"]
[351316536,1738511539923,-500.0,0.00015634,2]
[351316537,1738511539933,-500.0,0.00015634,2]
[351316538,1738511539943,-500.0,0.00015634,2]
[351316539,1738511539953,-500.0,0.00015634,2]
[351316540,1738511539964,-500.0,0.00015634,2]
[351316541,1738511539975,-500.0,0.00015634,2]
[351316542,1738511539985,-500.0,0.00015634,2]
[351316543,1738511539996,-500.0,0.00015634,2]
[351316544,1738511540007,-500.0,0.00015634,2]
[351316545,1738511540017,-500.0,0.00015634,2]
[351316546,1738511540027,-500.0,0.00015634,2]
[351316547,1738511540038,-500.0,0.00015634,2]
[351316548,1738511540047,-500.0,0.00015634,2]
[351316549,1738511540057,-500.0,0.00015634,2]
[351316550,1738511540067,-500.0,0.00015634,2]
[351316551,1738511540077,-500.0,0.00015634,2]
[351316552,1738511540087,-500.0,0.00015634,2]
[351316553,1738511540097,-500.0,0.00015634,2]
[351316554,1738511540107,-500.0,0.00015634,2]
[351316555,1738511540116,-500.0,0.00015634,2]
[351316556,1738511540125,-500.0,0.00015634,2]
[351316557,1738511540135,-500.0,0.00015634,2]
[351316558,1738511540146,-985.0,0.00015634,2]
[351316559,1738511540156,-500.0,0.00015673,2]
[351316560,1738511540165,-7341.851374,0.00015678,2]
[351316561,1738511540175,-153.892979,0.00015685,2]
[351316562,1738511540185,-158789.47701937,0.000157,2]
[351316563,1738511540195,-2873.430661,0.000157,2]
[351316564,1738511540205,-2873.430662,0.000157,2]
[351316565,1738511540215,-222.401033,0.000157,2]
[351316566,1738511540225,-222.401041,0.000157,2]
[351316567,1738511540235,-162.975219,0.000157,2]
[351316568,1738511540245,-161.73379,0.000157,2]
[351316569,1738511540255,-161.73379,0.000157,2]
[351316570,1738511540264,-1289.080245,0.000157,2]
[351316571,1738511540274,-1289.080242,0.000157,2]
[351316572,1738511540283,-151.0,0.000157,2]
[351316573,1738511540293,-151.0,0.000157,2]
[351316574,1738511540303,-151.0,0.000157,2]
[351316575,1738511540312,-151.0,0.000157,2]
[351316576,1738511540322,-1000.0,0.00015722,2]
[351316577,1738511540332,-15957.14849184,0.00015736,2]
[351316578,1738511540342,-8000.0,0.00015738,3]
[351316579,1738511540352,-1142.48,0.00015739,2]
[351316580,1738511540362,-1272.0,0.00015739,2]
[351316581,1738511540372,-637.0,0.00015739,2]
[351316582,1738511540382,-150.0,0.00015739,2]
[351316583,1738511540392,-568.0,0.00015739,2]
[351316584,1738511540401,-1867.0,0.00015739,2]
[351316585,1738511540411,-1263.0,0.00015739,2]
[351316586,1738511540420,-907.0,0.00015739,2]
[351316587,1738511540432,-782.0,0.00015739,2]
[351316588,1738511540442,-2952.0,0.00015739,2]
[351316589,1738511540451,-538.0,0.00015739,2]
[351316590,1738511540460,-150.0,0.00015739,2]
[351316591,1738511540470,-3910.0,0.00015739,2]
[351316592,1738511540480,-150.0,0.00015739,2]
[351316593,1738511540490,-1006.0,0.00015739,2]
[351316594,1738511540500,-1108.0,0.00015739,2]
[351316595,1738511540512,-323.22780939,0.00015762,2]
[351316596,1738511540522,-609.426977,0.000158,2]
[351316597,1738511540531,-609.426977,0.000158,2]
[351316598,1738511540541,-151.0,0.000158,2]
[351316599,1738511540552,-151.0,0.000158,2]
[351316600,1738511540562,-179.46656,0.000158,2]
[351316601,1738511540572,-165.376134,0.000158,2]
[351316602,1738511540581,-165.376134,0.000158,2]
[351316603,1738511540591,-260.520012,0.000158,2]
[351316604,1738511540601,-260.520012,0.000158,2]
[351316605,1738511540611,-217.374194,0.000158,2]
[351316606,1738511540620,-217.374194,0.000158,2]
[351316607,1738511540631,-218.4,0.000158,2]
[351316608,1738511540642,-218.4,0.000158,2]
[351316609,1738511540652,-218.4,0.000158,2]
[351316610,1738511540662,-218.4,0.000158,2]
[351316611,1738511540672,-814.253625,0.000158,2]
[351316612,1738511540682,-814.253625,0.000158,2]
[351316613,1738511540691,-814.253625,0.000158,2]
[351316614,1738511540701,-814.253634,0.000158,2]
[351316615,1738511540711,-172.046731,0.000158,2]
[351316616,1738511540722,-172.046731,0.000158,2]
[351316617,1738511540733,-172.046731,0.000158,2]
[351316618,1738511540743,-172.046723,0.000158,2]
[351316619,1738511540752,-231.451958,0.000158,2]
[351316620,1738511540762,-151.0,0.000158,2]
[351316621,1738511540773,-231.451958,0.000158,2]
[351316622,1738511540783,-231.451958,0.000158,2]
[351316623,1738511540793,-231.451957,0.000158,2]
[351316624,1738511540803,-215.347021,0.000158,2]
[351316625,1738511540813,-215.347021,0.000158,2]
[351316626,1738511540823,-215.347021,0.000158,2]
[351316627,1738511540833,-215.347026,0.000158,2]
[351316628,1738511540844,-816.321675,0.000158,2]
[351316629,1738511540854,-553.986468,0.000158,2]
[351316630,1738511540864,-553.986478,0.000158,2]
[351316631,1738511540874,-151.0,0.000158,2]
[351316632,1738511540884,-652.17835,0.000158,2]
[351316633,1738511540895,-151.0,0.000158,2]
[351316634,1738511540904,-652.178356,0.000158,2]
[351316635,1738511540914,-705.724075,0.000158,2]
[351316636,1738511540923,-1931.954796,0.000158,2]
[351316637,1738511540933,-705.724083,0.000158,2]
[351316638,1738511540942,-1931.954799,0.000158,2]
[351316639,1738511540952,-269.295923,0.000158,2]
[351316640,1738511540962,-269.295929,0.000158,2]
[351316641,1738511540972,-8870.537811,0.000158,2]
[351316642,1738511540982,-1501553.38688571,0.000158,2]
[351316643,1738511540992,-539.19,0.00015863,7]
[351316644,1738511541003,-539.19,0.00015863,7]
[351316645,1738511541013,-171.614116,0.00015874,2]
[351316646,1738511541023,-153.892979,0.00015874,2]
[351316647,1738511541032,-2000.0,0.0001588,2]
[351316648,1738511541042,-772.36580641,0.00015888,2]
[351316649,1738511541053,-2000.0,0.0001589,2]
[351316650,1738511541064,-1000.0,0.0001589,7]
[351316651,1738511541073,-150.0,0.0001589,2]
[351316652,1738511541083,-150.0,0.0001589,2]
[351316653,1738511541093,-500.0,0.0001589,2]
[351316654,1738511541102,-150.0,0.0001589,2]
[351316655,1738511541111,-150.0,0.0001589,2]
[351316656,1738511541120,-1491.96945213,0.0001589,2]
[351316657,1738511541131,-1000.0,0.0001589,2]
[351316658,1738511541140,-1000.0,0.0001589,2]
[351316659,1738511541150,-1000.0,0.0001589,2]
[351316660,1738511541160,-1000.0,0.0001589,2]
[351316661,1738511541170,-1000.0,0.0001589,2]
[351316662,1738511541179,-1000.0,0.0001589,2]
[351316663,1738511541188,-1000.0,0.0001589,2]
[351316664,1738511541198,-1000.0,0.0001589,2]
[351316665,1738511541207,-1000.0,0.0001589,2]
[351316666,1738511541217,-1000.0,0.0001589,2]
[351316667,1738511541226,-1000.0,0.0001589,2]
[351316668,1738511541235,-1000.0,0.0001589,2]
[351316669,1738511541244,-1000.0,0.0001589,2]
[351316670,1738511541254,-1000.0,0.0001589,2]
[351316671,1738511541264,-1000.0,0.0001589,2]
[351316672,1738511541273,-1000.0,0.0001589,2]
[351316673,1738511541282,-1000.0,0.0001589,2]
[351316674,1738511541291,-1000.0,0.0001589,2]
[351316675,1738511541300,-1000.0,0.0001589,2]
[351316676,1738511541309,-1000.0,0.0001589,2]
[351316677,1738511541318,-1000.0,0.0001589,2]
[351316678,1738511541328,-1000.0,0.0001589,2]
[351316679,1738511541337,-1000.0,0.0001589,2]
[351316680,1738511541346,-585.0,0.0001589,2]
[351316681,1738511541355,-1000.0,0.0001589,2]
[351316682,1738511541365,-1000.0,0.0001589,2]
[351316683,1738511541374,-1000.0,0.0001589,2]
[351316684,1738511541383,-1000.0,0.0001589,2]
[351316685,1738511541392,-1000.0,0.0001589,2]
[351316686,1738511541401,-1000.0,0.0001589,2]
[351316687,1738511541410,-1000.0,0.0001589,2]
[351316688,1738511541419,-1000.0,0.0001589,2]
[351316689,1738511541427,-1000.0,0.0001589,2]
[351316690,1738511541436,-1000.0,0.0001589,2]
[351316691,1738511541445,-1000.0,0.0001589,2]
[351316692,1738511541455,-1000.0,0.0001589,2]
[351316693,1738511541465,-1000.0,0.0001589,2]
[351316694,1738511541475,-1000.0,0.0001589,2]
[351316695,1738511541485,-1000.0,0.0001589,2]
[351316696,1738511541494,-1000.0,0.0001589,2]
[351316697,1738511541503,-1000.0,0.0001589,2]
[351316698,1738511541516,-1000.0,0.0001589,2]
[351316699,1738511541525,-1000.0,0.0001589,2]
[351316700,1738511541534,-1000.0,0.0001589,2]
[351316701,1738511541546,-1000.0,0.0001589,2]
[351316702,1738511541555,-1000.0,0.0001589,2]
[351316703,1738511541565,-1000.0,0.0001589,2]
[351316704,1738511541575,-1000.0,0.0001589,2]
[351316705,1738511541583,-1000.0,0.0001589,2]
[351316706,1738511541593,-1000.0,0.0001589,2]
[351316707,1738511541602,-1000.0,0.0001589,2]
[351316708,1738511541611,-1000.0,0.0001589,2]
[351316709,1738511541622,-1000.0,0.0001589,2]
[351316710,1738511541631,-1000.0,0.0001589,2]
[351316711,1738511541640,-1000.0,0.0001589,2]
[351316712,1738511541650,-1000.0,0.0001589,2]
[351316713,1738511541660,-1000.0,0.0001589,2]
[351316714,1738511541669,-1000.0,0.0001589,2]
[351316715,1738511541679,-1000.0,0.0001589,2]
[351316716,1738511541688,-1000.0,0.0001589,2]
[351316717,1738511541698,-1000.0,0.0001589,2]
[351316718,1738511541707,-1000.0,0.0001589,2]
[351316719,1738511541717,-1000.0,0.0001589,2]
[351316720,1738511541726,-1000.0,0.0001589,2]
[351316721,1738511541735,-1000.0,0.0001589,2]
[351316722,1738511541745,-1000.0,0.0001589,2]
[351316723,1738511541755,-1000.0,0.0001589,2]
[351316724,1738511541765,-1000.0,0.0001589,2]
[351316725,1738511541775,-1000.0,0.0001589,2]
[351316726,1738511541784,-1000.0,0.0001589,2]
[351316727,1738511541793,-1000.0,0.0001589,2]
[351316728,1738511541802,-1000.0,0.0001589,2]
[351316729,1738511541811,-1000.0,0.0001589,2]
[351316730,1738511541821,-1000.0,0.0001589,2]
[351316731,1738511541831,-1000.0,0.0001589,2]
[351316732,1738511541840,-1000.0,0.0001589,2]
[351316733,1738511541850,-1000.0,0.0001589,2]
[351316734,1738511541860,-1000.0,0.0001589,2]
[351316735,1738511541869,-1000.0,0.0001589,2]
[351316736,1738511541879,-1000.0,0.0001589,2]
[351316737,1738511541888,-1000.0,0.0001589,2]
[351316738,1738511541898,-1000.0,0.0001589,2]
[351316739,1738511541908,-1000.0,0.0001589,2]
[351316740,1738511541917,-1000.0,0.0001589,2]
[351316741,1738511541927,-1000.0,0.0001589,2]
[351316742,1738511541937,-1000.0,0.0001589,2]
[351316743,1738511541946,-1000.0,0.0001589,2]
[351316744,1738511541956,-1000.0,0.0001589,2]
[351316745,1738511541967,-1000.0,0.0001589,2]
[351316746,1738511541977,-1000.0,0.0001589,2]
[351316747,1738511541987,-530.16944834,0.00015891,2]
[351316748,1738511541997,-200.0,0.00015892,2]
[351316749,1738511542007,-37888.20825282,0.00015892,2]
[351316750,1738511542017,-2152.32673563,0.00015892,2]
[351316751,1738511542027,-718.92443139,0.00015892,2]
[351316752,1738511542037,-2637.91953447,0.00015893,2]
[351316753,1738511542047,-500.73023238,0.00015893,2]
[351316754,1738511542057,-500.73023238,0.00015894,2]
[351316755,1738511542067,-3941.06204691,0.00015896,2]
[351316756,1738511542076,-1246.48845475,0.00015897,2]
[351316757,1738511542086,-200.0,0.00015898,2]
[351316758,1738511542095,-5105.95385345,0.00015898,2]
[351316759,1738511542105,-772.36580641,0.00015898,2]
[351316760,1738511542115,-2637.91953447,0.00015898,2]
[351316761,1738511542125,-265.26123833,0.00015899,2]
[351316762,1738511542135,-143227.80207561,0.00015899,7]
[351316763,1738511542146,-4317.78840283,0.000159,4]
[351316764,1738511542156,-2226125.34630926,0.000159,2]
[351316765,1738511542166,-785700.07860062,0.000159,2]
[351316766,1738511542313,-1510.42,0.000159,2]
[351316767,1738511542322,-609.426977,0.000159,2]
[351316768,1738511542332,-609.426977,0.000159,2]
[351316769,1738511542342,-151.0,0.000159,2]
[351316770,1738511542352,-151.0,0.000159,2]
[351316771,1738511542363,-165.376134,0.000159,2]
[351316772,1738511542373,-165.376144,0.000159,2]
[351316773,1738511542384,-260.520012,0.000159,2]
[351316774,1738511542394,-260.520012,0.000159,2]
[351316775,1738511542405,-217.374194,0.000159,2]
[351316776,1738511542415,-217.374196,0.000159,2]
[351316777,1738511542424,-323.22780939,0.000159,2]
[351316778,1738511542434,-5977.24190431,0.000159,2]
[351316779,1738511542445,-5977.24190425,0.000159,2]
[351316780,1738511542456,-5977.24190425,0.000159,2]
[351316781,1738511542470,-5977.24190425,0.000159,2]
[351316782,1738511542481,-5977.24190425,0.000159,2]
[351316783,1738511542492,-5977.24190425,0.000159,2]
[351316784,1738511542502,-5977.24190425,0.000159,2]
[351316785,1738511542513,-5977.24190425,0.000159,2]
[351316786,1738511542523,-5977.24190425,0.000159,2]
[351316787,1738511542532,-5977.24190425,0.000159,2]
[351316788,1738511542543,-5215.69534434,0.000159,2]
[351316789,1738511542556,-5287.0865885,0.00015901,2]
[351316790,1738511542567,-862.63984483,0.00015901,2]
[351316791,1738511542577,-57599.80830209,0.00015903,2]
[351316792,1738511542588,-245.95000585,0.00015904,2]
[351316793,1738511542599,-7188.67479293,0.00015905,2]
[351316794,1738511542610,-5287.0865885,0.00015905,2]
[351316795,1738511542619,-500.73023238,0.00015905,2]
[351316796,1738511542631,-200.0,0.00015905,2]
[351316797,1738511542640,-200.0,0.00015906,2]
[351316798,1738511542649,-1102.13293297,0.00015908,2]
[351316799,1738511542659,-200.0,0.00015908,2]
[351316800,1738511542669,-500.73023238,0.00015908,2]
[351316801,1738511542679,-25690.15216363,0.00015909,2]
[351316802,1738511542689,-13830.00071858,0.00015911,2]
[351316803,1738511542700,-718.92443139,0.00015911,2]
[351316804,1738511542710,-200.0,0.00015911,2]
[351316805,1738511542725,-1491.96945213,0.00015913,2]
[351316806,1738511542734,-5215.69534434,0.00015914,2]
[351316807,1738511542743,-530.16944834,0.00015915,2]
[351316808,1738511542753,-1246.48845475,0.00015916,2]
[351316809,1738511542764,-1246.48845475,0.00015916,2]
[351316810,1738511542774,-4446.75053054,0.00015917,2]
[351316811,1738511542784,-200.0,0.00015917,2]
[351316812,1738511542795,-200.0,0.00015917,2]
[351316813,1738511542804,-1102.13293297,0.00015917,2]
[351316814,1738511542814,-150.0,0.00015917,2]
[351316815,1738511542825,-500.0,0.00015917,2]
[351316816,1738511542835,-150.0,0.00015917,2]
[351316817,1738511542846,-150.0,0.00015917,2]
[351316818,1738511542857,-4446.75053054,0.00015919,2]
[351316819,1738511542867,-241.06631965,0.0001592,2]
[351316820,1738511542877,-772.36580641,0.0001592,2]
[351316821,1738511542887,-1256.37272799,0.00015922,2]
[351316822,1738511542897,-5215.69534434,0.00015923,2]
[351316823,1738511542907,-200.0,0.00015923,2]
[351316824,1738511542917,-862.63984483,0.00015924,2]
[351316825,1738511542927,-1102.13293297,0.00015925,2]
[351316826,1738511542937,-2039.85239074,0.00015927,2]
[351316827,1738511542947,-2152.32673563,0.00015927,2]
[351316828,1738511542957,-3941.06204691,0.00015929,2]
[351316829,1738511542971,-718.92443139,0.0001593,2]
[351316830,1738511542980,-241.06631965,0.00015933,2]
[351316831,1738511542990,-200.0,0.00015935,2]
[351316832,1738511543001,-2039.85239074,0.00015936,2]
[351316833,1738511543011,-231.69533681,0.00015937,2]
[351316834,1738511543021,-231.69533681,0.00015938,2]
[351316835,1738511543031,-200.0,0.00015938,2]
[351316836,1738511543041,-248.17656096,0.00015938,2]
[351316837,1738511543051,-1246.48845475,0.00015939,2]
[351316838,1738511543060,-715.184091,0.00015942,2]
[351316839,1738511543071,-241.06631965,0.00015942,2]
[351316840,1738511543080,-5105.95385345,0.00015943,2]
[351316841,1738511543090,-231.69533681,0.00015943,2]
[351316842,1738511543099,-500.0,0.00015945,2]
[351316843,1738511543108,-150.0,0.00015945,2]
[351316844,1738511543118,-245.95000585,0.00015947,2]
[351316845,1738511543129,-200.0,0.00015948,2]
[351316846,1738511543139,-862.63984483,0.00015948,2]
[351316847,1738511543149,-245.95000585,0.00015948,2]
[351316848,1738511543159,-2637.91953447,0.00015949,2]
[351316849,1738511543169,-200.0,0.00015949,2]
[351316850,1738511543179,-248.17656096,0.00015949,2]
[351316851,1738511543189,-715.184091,0.0001595,2]
[351316852,1738511543199,-4446.75053054,0.00015951,2]
[351316853,1738511543209,-2152.32673563,0.00015952,2]
[351316854,1738511543221,-735.32637917,0.00015952,2]
[351316855,1738511543231,-265.26123833,0.00015953,2]
[351316856,1738511543241,-5105.95385345,0.00015954,2]
[351316857,1738511543251,-1491.96945213,0.00015955,2]
[351316858,1738511543260,-5751.46564797,0.00015955,2]
[351316859,1738511543270,-5287.0865885,0.00015958,2]
[351316860,1738511543280,-1319.91102674,0.00015959,2]
[351316861,1738511543290,-5287.0865885,0.00015959,2]
[351316862,1738511543299,-715.184091,0.00015959,2]
[351316863,1738511543310,-718.92443139,0.00015961,2]
[351316864,1738511543320,-735.32637917,0.00015961,2]
[351316865,1738511543329,-3941.06204691,0.00015961,2]
[351316866,1738511543339,-200.0,0.00015963,2]
[351316867,1738511543349,-13830.00071858,0.00015965,2]
[351316868,1738511543358,-200.0,0.00015965,2]
[351316869,1738511543367,-245.95000585,0.00015965,2]
[351316870,1738511543376,-1319.91102674,0.00015966,2]
[351316871,1738511543386,-265.26123833,0.00015966,2]
[351316872,1738511543395,-1256.37272799,0.00015968,2]
[351316873,1738511543406,-25690.15216363,0.00015968,2]
[351316874,1738511543415,-1319.91102674,0.00015969,2]
[351316875,1738511543425,-1491.96945213,0.00015969,2]
[351316876,1738511543435,-1256.37272799,0.00015969,2]
[351316877,1738511543445,-200.0,0.00015969,2]
[351316878,1738511543455,-735.32637917,0.00015969,2]
[351316879,1738511543465,-500.0,0.00015972,2]
[351316880,1738511543474,-229.18662669,0.00015972,2]
[351316881,1738511543483,-7188.67479293,0.00015974,2]
[351316882,1738511543493,-2637.91953447,0.00015976,2]
[351316883,1738511543503,-530.16944834,0.00015976,2]
[351316884,1738511543516,-57599.80830209,0.00015977,2]
[351316885,1738511543527,-862.63984483,0.00015978,2]
[351316886,1738511543537,-57599.80830209,0.00015978,2]
[351316887,1738511543547,-2152.32673563,0.00015978,2]
[351316888,1738511543559,-13830.00071858,0.00015979,2]
[351316889,1738511543568,-5105.95385345,0.0001598,2]
[351316890,1738511543578,-248.17656096,0.0001598,2]
[351316891,1738511543588,-343.0,0.0001598,2]
[351316892,1738511543598,-7188.67479293,0.00015982,2]
[351316893,1738511543608,-772.36580641,0.00015982,2]
[351316894,1738511543618,-5751.46564797,0.00015983,2]
[351316895,1738511543629,-13830.00071858,0.00015983,2]
[351316896,1738511543638,-4446.75053054,0.00015983,2]
[351316897,1738511543648,-25690.15216363,0.00015984,2]
[351316898,1738511543658,-200.0,0.00015984,2]
[351316899,1738511543668,-5751.46564797,0.00015984,2]
[351316900,1738511543678,-248.17656096,0.00015984,2]
[351316901,1738511543687,-25690.15216363,0.00015987,2]
[351316902,1738511543697,-2039.85239074,0.00015988,2]
[351316903,1738511543707,-7188.67479293,0.00015988,2]
[351316904,1738511543718,-1319.91102674,0.00015988,2]
[351316905,1738511543727,-1102.13293297,0.00015988,2]
[351316906,1738511543736,-335.3112375,0.00015989,2]
[351316907,1738511543745,-16333.0036273,0.00015989,2]
[351316908,1738511543755,-4742.3438898,0.00015989,2]
[351316909,1738511543764,-3941.06204691,0.00015989,2]
[351316910,1738511543774,-231.69533681,0.00015989,2]
[351316911,1738511543784,-200.0,0.0001599,2]
[351316912,1738511543793,-530.16944834,0.00015991,2]
[351316913,1738511543802,-200.0,0.00015991,2]
[351316914,1738511543811,-715.184091,0.00015993,2]
[351316915,1738511543821,-735.32637917,0.00015993,2]
[351316916,1738511543831,-11150.63194982,0.00015995,2]
[351316917,1738511543841,-200.0,0.00015995,2]
[351316918,1738511543851,-241.06631965,0.00015995,2]
[351316919,1738511543861,-339.35348885,0.00015995,2]
[351316920,1738511543870,-1142.74070989,0.00015998,2]
[351316921,1738511543880,-1055.98541352,0.00015998,2]
[351316922,1738511543890,-5751.46564797,0.00015999,2]
[351316923,1738511543900,-1256.37272799,0.00015999,2]
[351316924,1738511543910,-5215.69534434,0.00015999,2]
[351316925,1738511543920,-99230.04240088,0.00015999,2]
[351316926,1738511543931,-609.426977,0.00015999,2]
[351316927,1738511543941,-609.426983,0.00015999,2]
[351316928,1738511543952,-151.0,0.00015999,2]
[351316929,1738511543961,-151.0,0.00015999,2]
[351316930,1738511543972,-265.26123833,0.00015999,2]
[351316931,1738511543982,-2039.85239074,0.00015999,2]
[351316932,1738511543992,-33341.38370325,0.00015999,2]
[351316933,1738511544002,-500.0,0.00016,2]
[351316934,1738511544012,-266834.54070104,0.00016,15]
[351316935,1738511544342,-225.089609,0.00012329,2]
[351316936,1738511544351,-57.95332294,0.00013971,2]
[351316937,1738511544363,-765.55667706,0.00013971,2]
[351316938,1738511544513,-6991.18945025,0.00016,15]
[351316939,1738511544525,-260.9127872,0.00016,15]
[351316940,1738511544537,-906.35800618,0.00016,15]
[351316941,1738511544552,-14449.56422386,0.00016,15]
[351316942,1738511544562,-37191.34217,0.00016,15]
[351316943,1738511544574,-7306.112,0.00016,15]
[351316944,1738511544587,-2550.64383093,0.00016,15]
[351316945,1738511544655,-885.76747028,0.00014109,2]
[351316946,1738511544668,-17.57492394,0.00016,15]
[351316947,1738511544681,-1672.34,0.00016,15]
[351316948,1738511544693,-699.54,0.00016,15]
[351316949,1738511544724,-753.30203135,0.00014108,2]
[351316950,1738511545084,-500.0,0.00010958,2]
[351316951,1738511545095,-500.0,0.00011225,2]
[351316952,1738511545104,-104.56017453,0.00011817,2]
[351316953,1738511545117,-488.98830037,0.00011817,2]
[351316954,1738511545126,-68043.66557566,0.00012191,2]
[351316955,1738511545138,-764.09423896,0.00012191,2]
[351316956,1738511545203,-500.0,0.00011362,2]
[351316957,1738511545215,-156.14,0.00012,2]
[351316958,1738511545227,-1000.0099704,0.00012,2]
[351316959,1738511545782,-500.0,0.00010958,2]
[351316960,1738511545793,-492.99234144,0.00010958,2]
[351316961,1738511545822,-7.00765856,0.00010958,2]
[351316962,1738511545832,-368.36734223,0.00010958,2]
[351316963,1738511545856,-131.63265777,0.00010958,2]
[351316964,1738511545865,-634.46,0.00011094,2]
[351316965,1738511545877,-185.35,0.00011095,2]
[351316966,1738511545886,-500.0,0.00011095,2]
[351316967,1738511545896,-634.46,0.00011231,2]
[351316968,1738511545906,-634.46,0.00011368,2]
[351316969,1738511545915,-262.46,0.00011499,2]
[351316970,1738511545926,-206.75551577,0.00011817,2]
[351316971,1738511545936,-387.32731541,0.00012,2]
[351316972,1738511545945,-635.39453395,0.00012191,2]
[351316973,1738511545958,-605100.9824678,0.00012191,2]
[351316974,1738511546935,-500.0,0.00010958,2]
[351316975,1738511546945,-135.01777066,0.00010958,2]
[351316976,1738511546956,-364.98222934,0.00010958,2]
[351316977,1738511546966,-303.50365729,0.00010958,2]
[351316978,1738511546977,-228.59634271,0.00010958,2]
[351316979,1738511546986,-420.02322856,0.00011094,2]
[351316980,1738511546996,-500.0,0.00011095,2]
[351316981,1738511547006,-500.0,0.00011232,2]
[351316982,1738511547016,-500.0,0.00011232,2]
[351316983,1738511547026,-500.0,0.00011369,2]
[351316984,1738511547036,-500.0,0.00011369,2]
[351316985,1738511547048,-634.46,0.00011505,2]
[351316986,1738511547058,-500.0,0.00011506,2]
[351316987,1738511547068,-634.46,0.00011642,2]
[351316988,1738511547077,-500.0,0.00011643,2]
[351316989,1738511547088,-634.46,0.00011779,2]
[351316990,1738511547098,-500.0,0.0001178,2]
[351316991,1738511547107,-634.46,0.00011916,2]
[351316992,1738511547117,-315.50948497,0.00011917,2]
[351316993,1738511661072,1039.33,0.00016658,30]
[351316998,1738512211356,150.0,0.00022505,120]
[351317000,1738512300914,737.51,8.336e-05,2]
[351317005,1738512390748,150.0,0.00022646,120]
[351317007,1738512514132,987.36,0.00016658,30]
[351317035,1738512632371,-254.930664,0.00010067,2]
[351317036,1738512632381,-517.16,0.00010118,2]
[351317037,1738512632391,-183.66,0.00010137,2]
[351317038,1738512632401,-300.0,0.00010169,2]
[351317039,1738512632411,-3028.89659254,0.0001017,2]
[351317040,1738512632423,-5727.228,0.0001017,2]
[351317041,1738512632435,-5695.5,0.0001017,2]
[351317042,1738512632446,-1361.11506792,0.0001017,2]
[351317043,1738512632504,-8087.26033954,0.0001017,2]
[351317044,1738512632513,-347.58,0.00010212,2]
[351317045,1738512632522,-165.38,0.00010289,2]
[351317046,1738512632532,-156.03,0.00010326,2]
[351317047,1738512632541,-1000.0,0.00010368,2]
[351317048,1738512632551,-231.76,0.00010407,2]
[351317049,1738512632560,-250.0,0.0001053,2]
[351317050,1738512632570,-158.1,0.00010546,2]
[351317051,1738512632579,-737.51,0.00010599,2]
[351317052,1738512632589,-3969.4221,0.00010658,2]
[351317053,1738512632599,-150.0,0.00010857,2]
[351317054,1738512632609,-6572.69296792,0.00010858,2]
[351317117,1738512638265,-1799.94722555,0.00010858,2]
[351317118,1738512638470,-1175.60002381,0.00010858,2]
[351317119,1738512638483,-993.87485064,0.00010858,2]
[351317120,1738512638494,-3000.93435773,0.00010858,2]
[351317349,1738512640484,-19795.06941372,0.00010858,2]
[351317537,1738512646446,-22938.12116063,0.00010858,2]
[351317538,1738512646670,-19945.603,0.00010858,2]
[351317539,1738512646688,-158.138,0.00010858,2]
[351317540,1738512646699,-467.7628,0.00010858,2]
[351317541,1738512646711,-5000.0,0.00010858,2]
[351317542,1738512646721,-131809.85318294,0.00010858,2]
[351317543,1738512646732,-300.0,0.000109,3]
[351317544,1738512646743,-500.0,0.00010958,2]
[351317545,1738512646754,-500.0,0.00010958,2]
[351317546,1738512646764,-500.0,0.00010958,2]
[351317547,1738512646775,-500.0,0.00010958,2]
[351317548,1738512646785,-500.0,0.00010958,2]
[351317549,1738512646796,-500.0,0.00010958,2]